lending/lending_fUSD_20250808
["ID","MTS","AMOUNT","RATE_DAILY","PERIOD"]
[377909413,1754613060632,-707.51,0.00019452,2]
[377909414,1754613060641,-480.51,0.00019452,2]
[377909415,1754613060651,-400.0,0.00019452,2]
[377909416,1754613060660,-400.0,0.00019452,2]
[377909417,1754613060669,-492.44,0.00019452,2]
[377909418,1754613060683,-1793.18,0.00019452,2]
[377909419,1754613060694,-400.0,0.00019452,2]
[377909420,1754613060703,-874.37,0.00019452,2]
[377909421,1754613060713,-400.0,0.00019452,2]
[377909422,1754613060723,-400.0,0.00019452,2]
[377909423,1754613060732,-634.13,0.00019452,2]
[377909424,1754613060742,-1291.62,0.00019452,2]
[377909425,1754613060752,-7044.17259268,0.00019465,2]
[377909426,1754613060762,-3109.60433765,0.00019465,2]
[377909427,1754613060772,-555.1,0.00019467,2]
[377909428,1754613060782,-500.0,0.00019473,2]
[377909429,1754613060792,-500.0,0.00019473,2]
[377909430,1754613060802,-500.0,0.00019473,2]
[377909431,1754613060812,-501.52433447,0.00019473,2]
[377909432,1754613060824,-500.0,0.00019473,2]
[377909433,1754613060835,-342.31227381,0.00019473,2]
[377909434,1754613060846,-500.0,0.00019473,2]
[377909435,1754613060855,-500.0,0.00019473,2]
[377909436,1754613060865,-630.56645487,0.00019473,2]
[377909437,1754613060876,-501.40595944,0.00019473,2]
[377909438,1754613060885,-226.2770895,0.00019481,2]
[377909439,1754613060895,-1000.0,0.00019521,2]
[377909440,1754613060904,-378.66647044,0.00019521,2]
[377909441,1754613060915,-7044.17259268,0.00019545,2]
[377909442,1754613060925,-3109.60433765,0.00019545,2]
[377909443,1754613060935,-203.0,0.0001955,2]
[377909444,1754613060945,-555.1,0.00019556,2]
[377909445,1754613060955,-277.35679052,0.00019558,2]
[377909446,1754613060965,-600.0,0.00019615,2]
[377909447,1754613060975,-7044.17259268,0.00019626,2]
[377909448,1754613060984,-3109.60433765,0.00019626,2]
[377909449,1754613060994,-555.1,0.00019646,2]
[377909450,1754613061004,-787.91416827,0.0001967,2]
[377909451,1754613061014,-348.13677684,0.00019686,2]
[377909452,1754613061025,-170.0,0.00019699,2]
[377909453,1754613061035,-150.0,0.00019699,2]
[377909454,1754613061045,-397.70874403,0.00019699,2]
[377909455,1754613061055,-182.69822048,0.00019699,2]
[377909456,1754613061065,-150.0,0.00019699,2]
[377909457,1754613061078,-1141.27033011,0.00019699,2]
[377909458,1754613061088,-150.0,0.00019699,2]
[377909459,1754613061098,-699.39963021,0.00019699,2]
[377909460,1754613061108,-150.0,0.00019699,2]
[377909461,1754613061118,-5574.98160114,0.00019699,2]
[377909462,1754613061129,-400.0,0.00019712,2]
[377909463,1754613061138,-1770.72,0.00019712,2]
[377909464,1754613061149,-2033.74,0.00019712,2]
[377909465,1754613061158,-400.0,0.00019712,2]
[377909466,1754613061168,-1928.95,0.00019712,2]
[377909467,1754613061178,-1964.46,0.00019712,2]
[377909468,1754613061188,-1517.59,0.00019712,2]
[377909469,1754613061197,-2517.35,0.00019712,2]
[377909470,1754613061208,-3417.84,0.00019712,2]
[377909471,1754613061217,-186.92,0.0001972,2]
[377909472,1754613061228,-1000.0,0.00019721,2]
[377909473,1754613061237,-1000.0,0.00019721,2]
[377909474,1754613061248,-1003.89309389,0.00019721,2]
[377909475,1754613061259,-1000.0,0.00019721,2]
[377909476,1754613061269,-902.82300964,0.00019721,2]
[377909477,1754613061279,-1000.0,0.00019721,2]
[377909478,1754613061289,-257.84456121,0.00019721,2]
[377909479,1754613061299,-1005.85793459,0.00019721,2]
[377909480,1754613061311,-583.41074771,0.00019721,2]
[377909481,1754613061321,-1000.0,0.00019721,2]
[377909482,1754613061334,-214.36303346,0.00019721,2]
[377909483,1754613061344,-505.42656466,0.00019721,2]
[377909484,1754613061354,-1000.0,0.00019721,2]
[377909485,1754613061364,-1000.0,0.00019721,2]
[377909486,1754613061374,-1000.0,0.00019721,2]
[377909487,1754613061384,-1000.0,0.00019721,2]
[377909488,1754613061394,-886.92004927,0.00019725,2]
[377909489,1754613061404,-500.0,0.00019725,2]
[377909490,1754613061413,-614.4674941,0.00019725,2]
[377909491,1754613061423,-200.0,0.00019726,2]
[377909492,1754613061434,-400.0,0.00019726,2]
[377909493,1754613061443,-400.0,0.00019726,2]
[377909494,1754613061453,-400.0,0.00019726,2]
[377909495,1754613061463,-413.9,0.00019726,2]
[377909496,1754613061473,-400.0,0.00019726,2]
[377909497,1754613061483,-491.72,0.00019726,2]
[377909498,1754613061493,-400.0,0.00019726,2]
[377909499,1754613061503,-1398.87,0.00019726,2]
[377909500,1754613061513,-1031.25,0.00019726,2]
[377909501,1754613061522,-400.0,0.00019726,2]
[377909502,1754613061533,-400.0,0.00019726,2]
[377909503,1754613061543,-565.33,0.00019726,2]
[377909504,1754613061554,-400.0,0.00019726,2]
[377909505,1754613061563,-400.0,0.00019726,2]
[377909506,1754613061577,-984.93,0.00019726,2]
[377909507,1754613061587,-400.0,0.00019726,2]
[377909508,1754613061599,-1073.05,0.00019726,2]
[377909509,1754613061609,-400.0,0.00019726,2]
[377909510,1754613061618,-1178.77,0.00019726,2]
[377909511,1754613061628,-828.34,0.00019726,2]
[377909512,1754613061638,-400.0,0.00019726,2]
[377909513,1754613061648,-400.0,0.00019726,2]
[377909514,1754613061657,-400.0,0.00019726,2]
[377909515,1754613061667,-400.0,0.00019726,2]
[377909516,1754613061677,-400.0,0.00019726,2]
[377909517,1754613061687,-400.0,0.00019726,2]
[377909518,1754613061697,-400.0,0.00019726,2]
[377909519,1754613061707,-400.0,0.00019726,2]
[377909520,1754613061717,-400.0,0.00019726,2]
[377909521,1754613061727,-812.28,0.00019726,2]
[377909522,1754613061736,-927.28,0.00019726,2]
[377909523,1754613061746,-400.0,0.00019726,2]
[377909524,1754613061756,-400.0,0.00019726,2]
[377909525,1754613061766,-400.0,0.00019726,2]
[377909526,1754613061775,-953.96,0.00019726,2]
[377909527,1754613061785,-400.0,0.00019726,2]
[377909528,1754613061796,-400.0,0.00019726,2]
[377909529,1754613061806,-861.71,0.00019726,2]
[377909530,1754613061816,-580.75,0.00019726,2]
[377909531,1754613061827,-802.6,0.00019726,2]
[377909532,1754613061840,-400.0,0.00019726,2]
[377909533,1754613061850,-400.0,0.00019726,2]
[377909534,1754613061860,-400.0,0.00019726,2]
[377909535,1754613061871,-400.0,0.00019726,2]
[377909536,1754613061881,-400.0,0.00019726,2]
[377909537,1754613061891,-571.8,0.00019726,2]
[377909538,1754613061901,-400.0,0.00019726,2]
[377909539,1754613061912,-400.0,0.00019726,2]
[377909540,1754613061923,-1017.49,0.00019726,2]
[377909541,1754613061933,-400.0,0.00019726,2]
[377909542,1754613061944,-292.24944825,0.00019726,2]
[377909543,1754613061954,-480.71,0.00019726,2]
[377909544,1754613061964,-400.0,0.00019726,2]
[377909545,1754613061974,-400.0,0.00019726,2]
[377909546,1754613061984,-403.89,0.00019726,2]
[377909547,1754613061994,-400.0,0.00019726,2]
[377909548,1754613062004,-400.0,0.00019726,2]
[377909549,1754613062015,-1379.73,0.00019726,2]
[377909550,1754613062024,-400.0,0.00019726,2]
[377909551,1754613062034,-308.08901994,0.00019726,2]
[377909552,1754613062044,-1290.36,0.00019726,2]
[377909553,1754613062054,-400.0,0.00019726,2]
[377909554,1754613062064,-400.0,0.00019726,2]
[377909555,1754613062077,-400.0,0.00019726,2]
[377909556,1754613062087,-400.0,0.00019726,2]
[377909557,1754613062097,-400.0,0.00019726,2]
[377909558,1754613062107,-560.12,0.00019726,2]
[377909559,1754613062117,-1326.45,0.00019726,2]
[377909560,1754613062127,-1037.58,0.00019726,2]
[377909561,1754613062137,-551.88,0.00019726,2]
[377909562,1754613062148,-400.0,0.00019726,2]
[377909563,1754613062158,-400.0,0.00019726,2]
[377909564,1754613062168,-570.53,0.00019726,2]
[377909565,1754613062178,-624.79,0.00019726,2]
[377909566,1754613062188,-459.48,0.00019726,2]
[377909567,1754613062198,-912.6,0.00019726,2]
[377909568,1754613062208,-453.86,0.00019726,2]
[377909569,1754613062219,-845.43,0.00019726,2]
[377909570,1754613062229,-610.33,0.00019726,2]
[377909571,1754613062238,-400.0,0.00019726,2]
[377909572,1754613062248,-1543.29,0.00019726,2]
[377909573,1754613062257,-400.0,0.00019726,2]
[377909574,1754613062267,-802.15,0.00019726,2]
[377909575,1754613062277,-405.06,0.00019726,2]
[377909576,1754613062288,-400.0,0.00019726,2]
[377909577,1754613062297,-400.0,0.00019726,2]
[377909578,1754613062307,-1052.0,0.00019726,2]
[377909579,1754613062317,-1340.86,0.00019726,2]
[377909580,1754613062330,-400.0,0.00019726,2]
[377909581,1754613062340,-303.35231215,0.00019726,2]
[377909582,1754613062349,-950.22,0.00019726,2]
[377909583,1754613062359,-903.46,0.00019726,2]
[377909584,1754613062369,-1188.56,0.00019726,2]
[377909585,1754613062379,-400.0,0.00019726,2]
[377909586,1754613062390,-400.0,0.00019726,2]
[377909587,1754613062401,-511.85,0.00019726,2]
[377909588,1754613062411,-400.0,0.00019726,2]
[377909589,1754613062421,-400.0,0.00019726,2]
[377909590,1754613062431,-502.43,0.00019726,2]
[377909591,1754613062442,-469.08,0.00019726,2]
[377909592,1754613062452,-538.68,0.00019726,2]
[377909593,1754613062463,-431.81,0.00019726,2]
[377909594,1754613062473,-400.0,0.00019726,2]
[377909595,1754613062484,-415.03,0.00019726,2]
[377909596,1754613062494,-400.0,0.00019726,2]
[377909597,1754613062504,-400.0,0.00019726,2]
[377909598,1754613062514,-400.0,0.00019726,2]
[377909599,1754613062524,-154.27136187,0.00019726,2]
[377909600,1754613062534,-400.0,0.00019726,2]
[377909601,1754613062544,-613.1,0.00019726,2]
[377909602,1754613062553,-400.0,0.00019726,2]
[377909603,1754613062563,-448.34,0.00019726,2]
[377909604,1754613062572,-400.0,0.00019726,2]
[377909605,1754613062587,-652.84,0.00019726,2]
[377909606,1754613062599,-400.0,0.00019726,2]
[377909607,1754613062611,-400.0,0.00019726,2]
[377909608,1754613062622,-400.0,0.00019726,2]
[377909609,1754613062632,-400.0,0.00019726,2]
[377909610,1754613062643,-1054.59,0.00019726,2]
[377909611,1754613062654,-606.31,0.00019726,2]
[377909612,1754613062665,-468.72,0.00019726,2]
[377909613,1754613062676,-400.0,0.00019726,2]
[377909614,1754613062686,-400.0,0.00019726,2]
[377909615,1754613062695,-560.03,0.00019726,2]
[377909616,1754613062704,-400.0,0.00019726,2]
[377909617,1754613062714,-400.0,0.00019726,2]
[377909618,1754613062723,-1129.63,0.00019726,2]
[377909619,1754613062734,-744.37,0.00019726,2]
[377909620,1754613062744,-771.07,0.00019726,2]
[377909621,1754613062755,-400.0,0.00019726,2]
[377909622,1754613062764,-1372.41,0.00019726,2]
[377909623,1754613062774,-461.00082998,0.00019726,2]
[377909624,1754613062784,-830.78,0.00019726,2]
[377909625,1754613062793,-643.55,0.00019726,2]
[377909626,1754613062803,-1290.29,0.00019726,2]
[377909627,1754613062813,-400.0,0.00019726,2]
[377909628,1754613062822,-400.0,0.00019726,2]
[377909629,1754613062835,-463.32,0.00019726,2]
[377909630,1754613062845,-400.0,0.00019726,2]
[377909631,1754613062855,-400.0,0.00019726,2]
[377909632,1754613062865,-400.0,0.00019726,2]
[377909633,1754613062875,-400.0,0.00019726,2]
[377909634,1754613062885,-400.0,0.00019726,2]
[377909635,1754613062895,-400.0,0.00019726,2]
[377909636,1754613062906,-792.51,0.00019726,2]
[377909637,1754613062917,-400.0,0.00019726,2]
[377909638,1754613062927,-400.0,0.00019726,2]
[377909639,1754613062936,-400.0,0.00019726,2]
[377909640,1754613062946,-720.13,0.00019726,2]
[377909641,1754613062956,-526.14,0.00019726,2]
[377909642,1754613062966,-690.34,0.00019726,2]
[377909643,1754613062977,-767.24,0.00019726,2]
[377909644,1754613062987,-784.03,0.00019726,2]
[377909645,1754613062997,-619.45,0.00019726,2]
[377909646,1754613063008,-592.46,0.00019726,2]
[377909647,1754613063017,-838.34,0.00019726,2]
[377909648,1754613063029,-400.0,0.00019726,2]
[377909649,1754613063040,-400.0,0.00019726,2]
[377909650,1754613063050,-430.58,0.00019726,2]
[377909651,1754613063061,-179.53071716,0.00019726,2]
[377909652,1754613063071,-400.0,0.00019726,2]
[377909653,1754613063084,-400.0,0.00019726,2]
[377909654,1754613063095,-400.0,0.00019726,2]
[377909655,1754613063106,-400.0,0.00019726,2]
[377909656,1754613063117,-400.0,0.00019726,2]
[377909657,1754613063127,-400.0,0.00019726,2]
[377909658,1754613063137,-400.0,0.00019726,2]
[377909659,1754613063147,-400.0,0.00019726,2]
[377909660,1754613063158,-400.0,0.00019726,2]
[377909661,1754613063168,-887.56,0.00019726,2]
[377909662,1754613063178,-400.0,0.00019726,2]
[377909663,1754613063188,-1398.35,0.00019726,2]
[377909664,1754613063198,-1086.27,0.00019726,2]
[377909665,1754613063209,-1137.31,0.00019726,2]
[377909666,1754613063219,-400.0,0.00019726,2]
[377909667,1754613063229,-488.07,0.00019726,2]
[377909668,1754613063239,-400.0,0.00019726,2]
[377909669,1754613063249,-615.2,0.00019726,2]
[377909670,1754613063259,-433.15,0.00019726,2]
[377909671,1754613063270,-969.77,0.00019726,2]
[377909672,1754613063280,-644.96,0.00019726,2]
[377909673,1754613063290,-711.54,0.00019726,2]
[377909674,1754613063301,-745.61,0.00019726,2]
[377909675,1754613063311,-1326.15,0.00019726,2]
[377909676,1754613063321,-580.71,0.00019726,2]
[377909677,1754613063335,-400.0,0.00019726,2]
[377909678,1754613063344,-400.0,0.00019726,2]
[377909679,1754613063354,-777.93,0.00019726,2]
[377909680,1754613063363,-400.0,0.00019726,2]
[377909681,1754613063372,-533.67,0.00019726,2]
[377909682,1754613063382,-400.0,0.00019726,2]
[377909683,1754613063392,-1146.04,0.00019726,2]
[377909684,1754613063402,-400.0,0.00019726,2]
[377909685,1754613063412,-1764.53,0.00019726,2]
[377909686,1754613063422,-400.0,0.00019726,2]
[377909687,1754613063432,-400.0,0.00019726,2]
[377909688,1754613063443,-678.35,0.00019726,2]
[377909689,1754613063454,-595.92,0.00019726,2]
[377909690,1754613063464,-1128.98,0.00019726,2]
[377909691,1754613063474,-400.0,0.00019726,2]
[377909692,1754613063484,-1058.02,0.00019726,2]
[377909693,1754613063494,-400.0,0.00019726,2]
[377909694,1754613063505,-460.25,0.00019726,2]
[377909695,1754613063515,-467.91,0.00019726,2]
[377909696,1754613063525,-498.62,0.00019726,2]
[377909697,1754613063535,-519.11,0.00019726,2]
[377909698,1754613063546,-684.85,0.00019726,2]
[377909699,1754613063556,-834.5,0.00019726,2]
[377909700,1754613063567,-400.0,0.00019726,2]
[377909701,1754613063581,-1822.08,0.00019726,2]
[377909702,1754613063594,-400.0,0.00019726,2]
[377909703,1754613063762,-400.0,0.00019726,2]
[377909704,1754613063773,-400.0,0.00019726,2]
[377909705,1754613063784,-400.0,0.00019726,2]
[377909706,1754613063795,-400.0,0.00019726,2]
[377909707,1754613063806,-400.0,0.00019726,2]
[377909708,1754613063817,-400.0,0.00019726,2]
[377909709,1754613063830,-431.49,0.00019726,2]
[377909710,1754613063843,-400.0,0.00019726,2]
[377909711,1754613063853,-756.51,0.00019726,2]
[377909712,1754613063864,-474.3,0.00019726,2]
[377909713,1754613063874,-400.0,0.00019726,2]
[377909714,1754613063886,-753.02,0.00019726,2]
[377909715,1754613063896,-400.0,0.00019726,2]
[377909716,1754613063907,-400.0,0.00019726,2]
[377909717,1754613063919,-488.75,0.00019726,2]
[377909718,1754613063930,-530.37,0.00019726,2]
[377909719,1754613063941,-237.47487005,0.00019726,2]
[377909720,1754613063952,-1312.14,0.00019726,2]
[377909721,1754613063963,-400.0,0.00019726,2]
[377909722,1754613063974,-664.1,0.00019726,2]
[377909723,1754613063986,-723.03,0.00019726,2]
[377909724,1754613063997,-481.93,0.00019726,2]
[377909725,1754613064007,-400.0,0.00019726,2]
[377909726,1754613064017,-753.14,0.00019726,2]
[377909727,1754613064027,-400.0,0.00019726,2]
[377909728,1754613064038,-1362.2,0.00019726,2]
[377909729,1754613064048,-681.29,0.00019726,2]
[377909730,1754613064057,-400.0,0.00019726,2]
[377909731,1754613064067,-400.0,0.00019726,2]
[377909732,1754613064080,-1202.92,0.00019726,2]
[377909733,1754613064090,-400.0,0.00019726,2]
[377909734,1754613064099,-400.0,0.00019726,2]
[377909735,1754613064109,-400.0,0.00019726,2]
[377909736,1754613064120,-908.09,0.00019726,2]
[377909737,1754613064130,-1356.82,0.00019726,2]
[377909738,1754613064140,-642.93,0.00019726,2]
[377909739,1754613064150,-400.0,0.00019726,2]
[377909740,1754613064160,-400.0,0.00019726,2]
[377909741,1754613064170,-558.14,0.00019726,2]
[377909742,1754613064180,-400.0,0.00019726,2]
[377909743,1754613064190,-473.3,0.00019726,2]
[377909744,1754613064200,-600.87,0.00019726,2]
[377909745,1754613064210,-857.38,0.00019726,2]
[377909746,1754613064220,-1113.28,0.00019726,2]
[377909747,1754613064230,-400.0,0.00019726,2]
[377909748,1754613064240,-1063.89,0.00019726,2]
[377909749,1754613064250,-766.74,0.00019726,2]
[377909750,1754613064260,-702.23,0.00019726,2]
[377909751,1754613064270,-400.0,0.00019726,2]
[377909752,1754613064280,-593.88,0.00019726,2]
[377909753,1754613064290,-697.81,0.00019726,2]
[377909754,1754613064300,-1070.57,0.00019726,2]
[377909755,1754613064310,-1013.85,0.00019726,2]
[377909756,1754613064320,-565.06,0.00019726,2]
[377909757,1754613064333,-835.59,0.00019726,2]
[377909758,1754613064343,-400.0,0.00019726,2]
[377909759,1754613064353,-787.56,0.00019726,2]
[377909760,1754613064363,-805.74,0.00019726,2]
[377909761,1754613064373,-714.37,0.00019726,2]
[377909762,1754613064383,-400.0,0.00019726,2]
[377909763,1754613064393,-400.0,0.00019726,2]
[377909764,1754613064404,-400.0,0.00019726,2]
[377909765,1754613064415,-446.94,0.00019726,2]
[377909766,1754613064425,-518.84,0.00019726,2]
[377909767,1754613064435,-634.1,0.00019726,2]
[377909768,1754613064444,-997.03,0.00019726,2]
[377909769,1754613064455,-668.96,0.00019726,2]
[377909770,1754613064466,-400.0,0.00019726,2]
[377909771,1754613064476,-1310.15,0.00019726,2]
[377909772,1754613064486,-400.0,0.00019726,2]
[377909773,1754613064496,-823.13,0.00019726,2]
[377909774,1754613064506,-602.12,0.00019726,2]
[377909775,1754613064515,-542.82,0.00019726,2]
[377909776,1754613064525,-539.85,0.00019726,2]
[377909777,1754613064535,-1520.38,0.00019726,2]
[377909778,1754613064545,-677.81,0.00019726,2]
[377909779,1754613064555,-400.0,0.00019726,2]
[377909780,1754613064572,-1166.4,0.00019726,2]
[377909781,1754613064594,-400.0,0.00019726,2]
[377909782,1754613064604,-400.0,0.00019726,2]
[377909783,1754613064615,-400.0,0.00019726,2]
[377909784,1754613064625,-440.74,0.00019726,2]
[377909785,1754613064635,-400.0,0.00019726,2]
[377909786,1754613064645,-400.0,0.00019726,2]
[377909787,1754613064655,-1322.15,0.00019726,2]
[377909788,1754613064664,-400.0,0.00019726,2]
[377909789,1754613064674,-400.0,0.00019726,2]
[377909790,1754613064685,-400.0,0.00019726,2]
[377909791,1754613064694,-400.0,0.00019726,2]
[377909792,1754613064704,-400.0,0.00019726,2]
[377909793,1754613064713,-394.61226596,0.00019726,2]
[377909794,1754613064723,-439.53,0.00019726,2]
[377909795,1754613064734,-1225.17,0.00019726,2]
[377909796,1754613064744,-400.0,0.00019726,2]
[377909797,1754613064753,-729.31,0.00019726,2]
[377909798,1754613064763,-1460.14,0.00019726,2]
[377909799,1754613064773,-400.0,0.00019726,2]
[377909800,1754613064783,-455.12,0.00019726,2]
[377909801,1754613064793,-400.0,0.00019726,2]
[377909802,1754613064803,-400.0,0.00019726,2]
[377909803,1754613064812,-400.0,0.00019726,2]
[377909804,1754613064822,-535.87,0.00019726,2]
[377909805,1754613064836,-965.56,0.00019726,2]
[377909806,1754613064846,-400.0,0.00019726,2]
[377909807,1754613064858,-400.0,0.00019726,2]
[377909808,1754613064868,-274.86683089,0.00019726,2]
[377909809,1754613064878,-400.0,0.00019726,2]
[377909810,1754613064888,-400.0,0.00019726,2]
[377909811,1754613064899,-400.0,0.00019726,2]
[377909812,1754613064910,-1112.82,0.00019726,2]
[377909813,1754613064924,-400.0,0.00019726,2]
[377909814,1754613064933,-473.14,0.00019726,2]
[377909815,1754613064943,-1239.98,0.00019726,2]
[377909816,1754613064953,-400.0,0.00019726,2]
[377909817,1754613064964,-592.4,0.00019726,2]
[377909818,1754613064974,-546.56,0.00019726,2]
[377909819,1754613064983,-400.0,0.00019726,2]
[377909820,1754613064993,-1121.49,0.00019726,2]
[377909821,1754613065003,-400.0,0.00019726,2]
[377909822,1754613065013,-412.93,0.00019726,2]
[377909823,1754613065022,-1332.23,0.00019726,2]
[377909824,1754613065032,-2373.45,0.00019726,2]
[377909825,1754613065041,-400.0,0.00019726,2]
[377909826,1754613065051,-867.66,0.00019726,2]
[377909827,1754613065061,-400.0,0.00019726,2]
[377909828,1754613065071,-1921.83,0.00019726,2]
[377909829,1754613065082,-400.0,0.00019726,2]
[377909830,1754613065092,-400.0,0.00019726,2]
[377909831,1754613065102,-477.33,0.00019726,2]
[377909832,1754613065112,-400.0,0.00019726,2]
[377909833,1754613065122,-586.09,0.00019726,2]
[377909834,1754613065132,-633.66,0.00019726,2]
[377909835,1754613065141,-400.0,0.00019726,2]
[377909836,1754613065151,-400.0,0.00019726,2]
[377909837,1754613065161,-434.62,0.00019726,2]
[377909838,1754613065172,-400.0,0.00019726,2]
[377909839,1754613065183,-1031.22,0.00019726,2]
[377909840,1754613065193,-400.0,0.00019726,2]
[377909841,1754613065204,-591.29,0.00019726,2]
[377909842,1754613065214,-1239.8,0.00019726,2]
[377909843,1754613065224,-419.72,0.00019726,2]
[377909844,1754613065233,-433.91,0.00019726,2]
[377909845,1754613065243,-765.3,0.00019726,2]
[377909846,1754613065253,-400.0,0.00019726,2]
[377909847,1754613065268,-1091.91,0.00019726,2]
[377909848,1754613065278,-718.67,0.00019726,2]
[377909849,1754613065288,-400.0,0.00019726,2]
[377909850,1754613065297,-169.01391876,0.00019726,2]
[377909851,1754613065307,-798.23,0.00019726,2]
[377909852,1754613065317,-942.73,0.00019726,2]
[377909853,1754613065329,-400.0,0.00019726,2]
[377909854,1754613065340,-549.44,0.00019726,2]
[377909855,1754613065350,-655.59,0.00019726,2]
[377909856,1754613065361,-706.48,0.00019726,2]
[377909857,1754613065371,-1153.34,0.00019726,2]
[377909858,1754613065381,-549.94,0.00019726,2]
[377909859,1754613065391,-1177.75,0.00019726,2]
[377909860,1754613065401,-560.12,0.00019726,2]
[377909861,1754613065412,-400.0,0.00019726,2]
[377909862,1754613065422,-819.45,0.00019726,2]
[377909863,1754613065432,-472.38,0.00019726,2]
[377909864,1754613065442,-895.98,0.00019726,2]
[377909865,1754613065452,-804.91,0.00019726,2]
[377909866,1754613065464,-400.0,0.00019726,2]
[377909867,1754613065474,-400.0,0.00019726,2]
[377909868,1754613065484,-638.56,0.00019726,2]
[377909869,1754613065494,-1000.0,0.00019726,2]
[377909870,1754613065504,-593.81,0.00019726,2]
[377909871,1754613065515,-352.152162,0.00019726,2]
[377909872,1754613065525,-1258.89,0.00019726,2]
[377909873,1754613065535,-352.152162,0.00019726,2]
[377909874,1754613065545,-420.834801,0.00019726,2]
[377909875,1754613065555,-420.834801,0.00019726,2]
[377909876,1754613065565,-400.0,0.00019726,2]
[377909877,1754613065576,-400.0,0.00019726,2]
[377909878,1754613065592,-1287.29,0.00019726,2]
[377909879,1754613065602,-400.0,0.00019726,2]
[377909880,1754613065612,-622.14,0.00019726,2]
[377909881,1754613065622,-400.0,0.00019726,2]
[377909882,1754613065632,-400.0,0.00019726,2]
[377909883,1754613065642,-1105.48,0.00019726,2]
[377909884,1754613065652,-1707.57,0.00019726,2]
[377909885,1754613065663,-1063.27,0.00019726,2]
[377909886,1754613065673,-1515.17,0.00019726,2]
[377909887,1754613065683,-1621.03,0.00019726,2]
[377909888,1754613065694,-400.0,0.00019726,2]
[377909889,1754613065704,-877.01,0.00019726,2]
[377909890,1754613065714,-400.0,0.00019726,2]
[377909891,1754613065724,-400.0,0.00019726,2]
[377909892,1754613065734,-577.01,0.00019726,2]
[377909893,1754613065744,-400.0,0.00019726,2]
[377909894,1754613065754,-400.0,0.00019726,2]
[377909895,1754613065764,-400.0,0.00019726,2]
[377909896,1754613065774,-400.0,0.00019726,2]
[377909897,1754613065784,-1622.23,0.00019726,2]
[377909898,1754613065793,-1480.91,0.00019726,2]
[377909899,1754613065803,-400.0,0.00019726,2]
[377909900,1754613065814,-400.0,0.00019726,2]
[377909901,1754613065824,-981.54,0.00019726,2]
[377909902,1754613065841,-400.0,0.00019726,2]
[377909903,1754613065851,-400.0,0.00019726,2]
[377909904,1754613065861,-246.791616,0.00019726,2]
[377909905,1754613065871,-246.791616,0.00019726,2]
[377909906,1754613065883,-400.0,0.00019726,2]
[377909907,1754613065893,-400.0,0.00019726,2]
[377909908,1754613065904,-1040.41,0.00019726,2]
[377909909,1754613065915,-400.0,0.00019726,2]
[377909910,1754613065925,-400.0,0.00019726,2]
[377909911,1754613065935,-447.12,0.00019726,2]
[377909912,1754613065945,-1390.26,0.00019726,2]